[Event "ESP-chT 2nd Division 2019"]
[Site "Linares"]
[Date "2019.08.23"]
[Round "7.12"]
[White "Blanco Acevedo, Cristobal Jose"]
[Black "Perez Garcia, Alejandro"]
[Result "0-1"]
[ECO "D45"]
[WhiteElo "2342"]
[BlackElo "2347"]
[Annotator "ChessBase"]
[PlyCount "118"]
[EventDate "2019.08.19"]
[EventType "team-tourn"]
[EventCountry "ESP"]
[SourceTitle "playchess.com"]
[Source "ChessBase"]
[SourceQuality "1"]
[TimeControl "5400+30"]

1. d4 {[%emt 0:01:37]} Nf6 {[%emt 0:00:24]} 2. c4 {[%emt 0:00:52]} e6 {[%emt 0:00:31]} 3. Nf3 {[%emt 0:00:19]} d5 {[%emt 0:00:26]} 4. Nc3 {[%emt 0:00:09]} c6 {[%emt 0:00:45]} 5. e3 {[%emt 0:00:11]} Nbd7 {[%emt 0:00:34]} 6. Qc2 {[%emt 0:00:05]} Bd6 {[%emt 0:00:55]} 7. g4 {[%emt 0:00:10]} h6 {[%emt 0:01:41]} 8. Rg1 {[%emt 0:02:29]} e5 {[%emt 0:00:55]} 9. h3 {[%emt 0:00:54]} a6 {[%emt 0:10:03]} 10. Bd2 {[%emt 0:02:30]} Qe7 {[%emt 0:13:30]} 11. O-O-O {[%emt 0:01:21]} e4 {[%emt 0:05:23]} 12. Nh4 {[%emt 0:02:05]} g6 {[%emt 0:03:01]} 13. c5 {[%emt 0:01:21]} Bh2 {[%emt 0:02:10]} 14. Rh1 {[%emt 0:00:32]} Bc7 {[%emt 0:03:53]} 15. f4 {[%emt 0:05:25]} b6 {[%emt 0:08:35]} 16. cxb6 {[%emt 0:03:46]} Nxb6 {[%emt 0:02:35]} 17. Be1 {[%emt 0:01:42]} Bd7 {[%emt 0:08:29]} 18. Kb1 {[%emt 0:00:33]} a5 {[%emt 0:05:32]} 19. Rc1 {[%emt 0:00:11]} Bd6 {[%emt 0:07:24]} 20. Ka1 {[%emt 0:01:12]} O-O {[%emt 0:02:22]} 21. Rg1 {[%emt 0:00:50]} Nh7 {[%emt 0:04:25]} 22. Be2 {[%emt 0:09:29]} Rfc8 {[%emt 0:00:42]} 23. Rf1 {[%emt 0:01:27]} c5 {[%emt 0:03:01]} 24. dxc5 {[%emt 0:00:31]} Bxc5 {[%emt 0:03:09]} 25. Qd2 {[%emt 0:00:09]} Nc4 {[%emt 0:04:06]} 26. Bxc4 {[%emt 0:02:12]} dxc4 {[%emt 0:00:07]} 27. f5 {[%emt 0:00:57]} g5 {[%emt 0:01:20]} 28. f6 {[%emt 0:06:19]} Nxf6 {[%emt 0:00:11]} 29. Nf5 {[%emt 0:00:41]} Bxf5 {[%emt 0:00:24]} 30. Rxf5 {[%emt 0:00:04]} a4 {[%emt 0:00:34]} 31. a3 {[%emt 0:03:51]} Rd8 {[%emt 0:00:42]} 32. Qf2 {[%emt 0:00:21]} Ra6 {[%emt 0:00:10]} 33. Na2 {[%emt 0:03:50]} Nd5 {[%emt 0:03:36]} 34. Rxc4 {[%emt 0:01:21]} Bxe3 {[%emt 0:02:27]} 35. Qe2 {[%emt 0:04:14]} Qe6 {[%emt 0:00:22]} 36. Nc3 {[%emt 0:08:00]} Nf4 {[%emt 0:02:45]} 37. Qf1 {[%emt 0:01:22]} Bd4 {[%emt 0:00:30]} 38. Nb5 {[%emt 0:03:11]} Be5 {[%emt 0:00:44]} 39. Bc3 {[%emt 0:04:18]} Bxc3 {[%emt 0:00:18]} 40. Nxc3 {[%emt 0:00:03]} Rad6 {[%emt 0:00:43]} 41. Rxe4 {[%emt 0:00:58]} Qb3 {[%emt 0:00:31]} 42. Re1 {[%emt 0:02:24]} Rb6 {[%emt 0:00:31]} 43. Rb5 {[%emt 0:01:57]} Rxb5 {[%emt 0:00:21]} 44. Qxb5 {[%emt 0:00:33]} Qxb5 {[%emt 0:00:36]} 45. Nxb5 {[%emt 0:00:01]} Nxh3 {[%emt 0:00:10]} 46. Rh1 {[%emt 0:00:09]} Nf2 {[%emt 0:00:17]} 47. Rxh6 {[%emt 0:00:28]} Nxg4 {[%emt 0:00:49]} 48. Ra6 {[%emt 0:00:14]} Ne3 {[%emt 0:00:21]} 49. Rxa4 {[%emt 0:00:39]} g4 {[%emt 0:00:38]} 50. Re4 {[%emt 0:00:05]} Rd1+ {[%emt 0:00:32]} 51. Ka2 {[%emt 0:00:05]} Re1 {[%emt 0:00:12]} 52. Nd4 {[%emt 0:00:39]} g3 {[%emt 0:00:10]} 53. Nf3 {[%emt 0:00:51]} g2 {[%emt 0:00:10]} 54. Kb3 {[%emt 0:02:05]} Rf1 {[%emt 0:00:10]} 55. Ng1 {[%emt 0:00:05]} Rxg1 {[%emt 0:00:28]} 56. Rxe3 {[%emt 0:00:05]} f5 {[%emt 0:00:17]} 57. Rg3+ {[%emt 0:00:08]} Kh7 {[%emt 0:01:03]} 58. Kc2 {[%emt 0:01:10]} f4 {[%emt 0:00:24]} 59. Rg4 {[%emt 0:00:13]} f3 {[%emt 0:00:25]} 0-1

[Event "ESP-chT 2nd Division 2019"]
[Site "Linares"]
[Date "2019.08.23"]
[Round "7.13"]
[White "Anaya Lopez, Victor Jose"]
[Black "Castilla Leon Salas, Carlos"]
[Result "1-0"]
[ECO "B39"]
[WhiteElo "2194"]
[BlackElo "2252"]
[Annotator "ChessBase"]
[PlyCount "79"]
[EventDate "2019.08.19"]
[EventType "team-tourn"]
[EventCountry "ESP"]
[SourceTitle "playchess.com"]
[Source "ChessBase"]
[SourceQuality "1"]
[TimeControl "5400+30"]

1. e4 {[%emt 0:00:00]} c5 {[%emt 0:00:22]} 2. Ne2 {[%emt 0:00:04]} Nc6 {[%emt 0:01:05]} 3. d4 {[%emt 0:02:57]} cxd4 {[%emt 0:00:09]} 4. Nxd4 {[%emt 0:00:03]} g6 {[%emt 0:00:51]} 5. c4 {[%emt 0:01:17]} Bg7 {[%emt 0:01:12]} 6. Be3 {[%emt 0:00:42]} Nf6 {[%emt 0:00:49]} 7. Nc3 {[%emt 0:00:03]} Ng4 {[%emt 0:01:35]} 8. Qxg4 {[%emt 0:00:20]} Nxd4 {[%emt 0:00:06]} 9. Qd1 {[%emt 0:00:28]} Ne6 {[%emt 0:00:32]} 10. Rc1 {[%emt 0:07:24]} d6 {[%emt 0:05:00]} 11. Qd2 {[%emt 0:07:51]} Qa5 {[%emt 0:00:30]} 12. Bd3 {[%emt 0:04:09]} g5 {[%emt 0:08:01]} 13. b3 {[%emt 0:13:02]} h5 {[%emt 0:10:57]} 14. h4 {[%emt 0:10:30]} g4 {[%emt 0:09:43]} 15. Nd5 {[%emt 0:08:13]} Qxd2+ {[%emt 0:02:19]} 16. Kxd2 {[%emt 0:03:12]} Bh6 {[%emt 0:14:57]} 17. f3 {[%emt 0:16:54]} gxf3 {[%emt 0:04:34]} 18. gxf3 {[%emt 0:00:20]} Bxe3+ {[%emt 0:01:12]} 19. Kxe3 {[%emt 0:00:32]} Kf8 {[%emt 0:03:04]} 20. b4 {[%emt 0:03:10]} b6 {[%emt 0:01:17]} 21. f4 {[%emt 0:02:19]} Bb7 {[%emt 0:03:19]} 22. Rhg1 {[%emt 0:03:58]} Rc8 {[%emt 0:05:55]} 23. Be2 {[%emt 0:01:38]} Ke8 {[%emt 0:07:55]} 24. f5 {[%emt 0:04:13]} Nd8 {[%emt 0:00:30]} 25. b5 {[%emt 0:02:23]} Bxd5 {[%emt 0:00:38]} 26. cxd5 {[%emt 0:00:26]} Rxc1 {[%emt 0:00:52]} 27. Rxc1 {[%emt 0:00:01]} Kd7 {[%emt 0:00:19]} 28. f6 {[%emt 0:01:18]} exf6 {[%emt 0:00:05]} 29. Bf1 {[%emt 0:01:12]} f5 {[%emt 0:02:33]} 30. Bh3 {[%emt 0:00:26]} Re8 {[%emt 0:03:06]} 31. Bxf5+ {[%emt 0:00:10]} Ke7 {[%emt 0:00:05]} 32. Rc7+ {[%emt 0:00:47]} Kf6 {[%emt 0:00:08]} 33. Kf4 {[%emt 0:00:57]} Re7 {[%emt 0:01:18]} 34. Rc8 {[%emt 0:02:31]} Nb7 {[%emt 0:02:17]} 35. Rc6 {[%emt 0:00:44]} Re8 {[%emt 0:04:19]} 36. Bc8 {[%emt 0:00:53]} Na5 {[%emt 0:03:29]} 37. Rxd6+ {[%emt 0:01:34]} Ke7 {[%emt 0:00:04]} 38. Rd7+ {[%emt 0:00:11]} Kf6 {[%emt 0:00:26]} 39. Rc7 {[%emt 0:00:21]} Re7 {[%emt 0:00:29]} 40. d6 {[%emt 0:01:31]} 1-0

[Event "ESP-chT 2nd Division 2019"]
[Site "Linares"]
[Date "2019.08.23"]
[Round "7.14"]
[White "Leon Acosta, Miguel"]
[Black "Perera Borrego, Maria Adela"]
[Result "1/2-1/2"]
[ECO "A05"]
[WhiteElo "2155"]
[BlackElo "2186"]
[Annotator "ChessBase"]
[PlyCount "94"]
[EventDate "2019.08.19"]
[EventType "team-tourn"]
[EventCountry "ESP"]
[SourceTitle "playchess.com"]
[Source "ChessBase"]
[SourceQuality "1"]
[TimeControl "5400+30"]

1. Nf3 {[%emt 0:00:00]} Nf6 {[%emt 0:00:01]} 2. g3 {[%emt 0:00:00]} d5 {[%emt 0:00:32]} 3. Bg2 {[%emt 0:00:00]} c5 {[%emt 0:02:10]} 4. O-O {[%emt 0:00:05]} Nc6 {[%emt 0:00:06]} 5. d4 {[%emt 0:00:06]} e6 {[%emt 0:00:13]} 6. c4 {[%emt 0:00:10]} Be7 {[%emt 0:00:56]} 7. Nc3 {[%emt 0:00:18]} dxc4 {[%emt 0:04:38]} 8. Qa4 {[%emt 0:03:21]} O-O {[%emt 0:02:39]} 9. dxc5 {[%emt 0:00:40]} Qa5 {[%emt 0:07:06]} 10. Qxc4 {[%emt 0:07:11]} Qxc5 {[%emt 0:01:49]} 11. Qxc5 {[%emt 0:01:30]} Bxc5 {[%emt 0:00:02]} 12. Bf4 {[%emt 0:00:48]} Nd5 {[%emt 0:09:14]} 13. Nxd5 {[%emt 0:08:07]} exd5 {[%emt 0:00:18]} 14. Rac1 {[%emt 0:00:14]} Be7 {[%emt 0:02:42]} 15. Rfd1 {[%emt 0:10:35]} Be6 {[%emt 0:03:15]} 16. Ne5 {[%emt 0:18:05]} g5 {[%emt 0:23:00]} 17. Nxc6 {[%emt 0:02:00]} bxc6 {[%emt 0:00:07]} 18. Bc7 {[%emt 0:00:41]} Bd7 {[%emt 0:01:57]} 19. e4 {[%emt 0:02:57]} Rac8 {[%emt 0:02:06]} 20. exd5 {[%emt 0:03:10]} Rxc7 {[%emt 0:04:34]} 21. d6 {[%emt 0:00:11]} Bxd6 {[%emt 0:03:34]} 22. Rxd6 {[%emt 0:00:03]} Rb8 {[%emt 0:03:22]} 23. b3 {[%emt 0:01:32]} Kg7 {[%emt 0:03:19]} 24. Rc4 {[%emt 0:04:47]} Rb6 {[%emt 0:02:33]} 25. h4 {[%emt 0:00:46]} h6 {[%emt 0:00:56]} 26. hxg5 {[%emt 0:16:42]} hxg5 {[%emt 0:00:07]} 27. f4 {[%emt 0:06:26]} gxf4 {[%emt 0:01:45]} 28. gxf4 {[%emt 0:01:35]} Kf8 {[%emt 0:02:25]} 29. Rc5 {[%emt 0:02:00]} Rb5 {[%emt 0:02:28]} 30. Re5 {[%emt 0:00:33]} Rxe5 {[%emt 0:01:25]} 31. fxe5 {[%emt 0:00:07]} c5 {[%emt 0:00:42]} 32. Bd5 {[%emt 0:00:24]} Ke7 {[%emt 0:03:47]} 33. Kf2 {[%emt 0:00:40]} Bc8 {[%emt 0:05:51]} 34. Ke3 {[%emt 0:01:03]} Rd7 {[%emt 0:04:23]} 35. Rxd7+ {[%emt 0:00:54]} Bxd7 {[%emt 0:00:02]} 36. Kd3 {[%emt 0:01:05]} Bb5+ {[%emt 0:00:30]} 37. Kc3 {[%emt 0:01:02]} f6 {[%emt 0:02:07]} 38. exf6+ {[%emt 0:01:02]} Kxf6 {[%emt 0:00:07]} 39. b4 {[%emt 0:00:20]} Ke5 {[%emt 0:00:39]} 40. bxc5 {[%emt 0:01:09]} Kxd5 {[%emt 0:00:37]} 41. a4 {[%emt 0:00:17]} Bxa4 {[%emt 0:00:54]} 42. c6 {[%emt 0:00:14]} Bxc6 {[%emt 0:00:34]} 43. Kb2 {[%emt 0:00:06]} Kc4 {[%emt 0:00:04]} 44. Ka1 {[%emt 0:00:12]} Kb3 {[%emt 0:00:14]} 45. Kb1 {[%emt 0:00:12]} a5 {[%emt 0:00:25]} 46. Ka1 {[%emt 0:00:06]} a4 {[%emt 0:01:23]} 47. Kb1 {[%emt 0:00:06]} a3 {[%emt 0:00:13]} 1/2-1/2

[Event "ESP-chT 2nd Division 2019"]
[Site "Linares"]
[Date "2019.08.23"]
[Round "7.15"]
[White "Terron Elena, Francisco M."]
[Black "Ordonez Torres, Maria Del Carmen"]
[Result "1-0"]
[ECO "D70"]
[WhiteElo "2167"]
[BlackElo "2027"]
[Annotator "ChessBase"]
[PlyCount "67"]
[EventDate "2019.08.19"]
[EventType "team-tourn"]
[EventCountry "ESP"]
[SourceTitle "playchess.com"]
[Source "ChessBase"]
[SourceQuality "1"]
[TimeControl "5400+30"]

1. d4 {[%emt 0:00:00]} Nf6 {[%emt 0:00:00]} 2. c4 {[%emt 0:00:00]} g6 {[%emt 0:00:00]} 3. Nf3 {[%emt 0:02:18]} Bg7 {[%emt 0:00:00]} 4. g3 {[%emt 0:00:06]} d6 {[%emt 0:00:13]} 5. Bg2 {[%emt 0:00:07]} O-O {[%emt 0:00:07]} 6. O-O {[%emt 0:00:07]} Nbd7 {[%emt 0:00:17]} 7. Qc2 {[%emt 0:01:34]} e5 {[%emt 0:00:51]} 8. Rd1 {[%emt 0:00:29]} Qe7 {[%emt 0:01:16]} 9. Nc3 {[%emt 0:00:36]} c6 {[%emt 0:01:07]} 10. e4 {[%emt 0:01:17]} a6 {[%emt 0:01:28]} 11. b3 {[%emt 0:09:15]} Re8 {[%emt 0:03:48]} 12. Ba3 {[%emt 0:02:05]} exd4 {[%emt 0:11:59]} 13. Nxd4 {[%emt 0:02:23]} c5 {[%emt 0:04:39]} 14. Nde2 {[%emt 0:00:19]} Rb8 {[%emt 0:02:06]} 15. Nf4 {[%emt 0:09:38]} b5 {[%emt 0:03:38]} 16. Ncd5 {[%emt 0:08:49]} Nxd5 {[%emt 0:10:13]} 17. Nxd5 {[%emt 0:00:20]} Qf8 {[%emt 0:04:57]} 18. Rab1 {[%emt 0:02:08]} Ne5 {[%emt 0:03:02]} 19. cxb5 {[%emt 0:23:36]} axb5 {[%emt 0:00:29]} 20. f4 {[%emt 0:00:17]} Nc6 {[%emt 0:05:01]} 21. Bb2 {[%emt 0:21:56]} Nd4 {[%emt 0:07:28]} 22. Bxd4 {[%emt 0:00:10]} cxd4 {[%emt 0:01:50]} 23. Nb4 {[%emt 0:03:26]} Bb7 {[%emt 0:03:28]} 24. Rbc1 {[%emt 0:02:03]} Rbc8 {[%emt 0:02:21]} 25. Qd3 {[%emt 0:00:48]} Rc5 {[%emt 0:03:09]} 26. Rc2 {[%emt 0:02:53]} Rec8 {[%emt 0:03:32]} 27. Re2 {[%emt 0:00:59]} Qd8 {[%emt 0:05:04]} 28. Bh3 {[%emt 0:02:23]} Rc3 {[%emt 0:12:23]} 29. Qxb5 {[%emt 0:00:18]} Rb8 {[%emt 0:05:29]} 30. Na6 {[%emt 0:01:27]} Bc6 {[%emt 0:01:29]} 31. Qxb8 {[%emt 0:00:03]} Qxb8 {[%emt 0:00:48]} 32. Nxb8 {[%emt 0:00:01]} Bb5 {[%emt 0:00:51]} 33. Red2 {[%emt 0:00:28]} d3 {[%emt 0:00:30]} 34. Bd7 {[%emt 0:00:34]} 1-0

[Event "ESP-chT 2nd Division 2019"]
[Site "Linares"]
[Date "2019.08.23"]
[Round "7.16"]
[White "Lopez Mulet, Inigo"]
[Black "Adla, Diego"]
[Result "0-1"]
[ECO "A62"]
[WhiteElo "2397"]
[BlackElo "2424"]
[Annotator "ChessBase"]
[PlyCount "86"]
[EventDate "2019.08.19"]
[EventType "team-tourn"]
[EventCountry "ESP"]
[SourceTitle "playchess.com"]
[Source "ChessBase"]
[SourceQuality "1"]
[TimeControl "5400+30"]

1. d4 {[%emt 0:00:00]} Nf6 {[%emt 0:00:00]} 2. c4 {[%emt 0:00:00]} e6 {[%emt 0:00:03]} 3. g3 {[%emt 0:00:00]} c5 {[%emt 0:00:06]} 4. d5 {[%emt 0:00:09]} exd5 {[%emt 0:00:06]} 5. cxd5 {[%emt 0:00:04]} d6 {[%emt 0:00:06]} 6. Nc3 {[%emt 0:00:05]} g6 {[%emt 0:00:04]} 7. Bg2 {[%emt 0:00:04]} Bg7 {[%emt 0:00:05]} 8. Nf3 {[%emt 0:00:05]} O-O {[%emt 0:00:05]} 9. O-O {[%emt 0:00:04]} Re8 {[%emt 0:00:05]} 10. Re1 {[%emt 0:00:06]} a6 {[%emt 0:00:13]} 11. a4 {[%emt 0:00:05]} Nbd7 {[%emt 0:00:07]} 12. e4 {[%emt 0:00:43]} Ng4 {[%emt 0:02:15]} 13. Nh4 {[%emt 0:00:13]} Nge5 {[%emt 0:03:22]} 14. f4 {[%emt 0:00:07]} Nc4 {[%emt 0:00:06]} 15. Nf3 {[%emt 0:00:06]} Rb8 {[%emt 0:02:12]} 16. Qc2 {[%emt 0:12:37]} Na5 {[%emt 0:01:09]} 17. e5 {[%emt 0:31:14]} dxe5 {[%emt 0:20:58]} 18. d6 {[%emt 0:01:22]} Qb6 {[%emt 0:01:38]} 19. fxe5 {[%emt 0:23:22]} Nxe5 {[%emt 0:08:18]} 20. Bf4 {[%emt 0:09:50]} Bf5 {[%emt 0:12:44]} 21. Qe2 {[%emt 0:06:35]} Nac4 {[%emt 0:29:51]} 22. Rad1 {[%emt 0:03:29]} Rbd8 {[%emt 0:00:59]} 23. Nd5 {[%emt 0:04:19]} Qxd6 {[%emt 0:00:09]} 24. Nxe5 {[%emt 0:00:03]} Nxe5 {[%emt 0:00:14]} 25. Bg5 {[%emt 0:00:05]} Bg4 {[%emt 0:06:35]} 26. Qf2 {[%emt 0:07:12]} Bxd1 {[%emt 0:00:15]} 27. Rxd1 {[%emt 0:00:05]} f6 {[%emt 0:03:53]} 28. Bxf6 {[%emt 0:01:20]} Bxf6 {[%emt 0:01:24]} 29. Qxf6 {[%emt 0:00:34]} Qxf6 {[%emt 0:00:20]} 30. Nxf6+ {[%emt 0:00:02]} Kh8 {[%emt 0:00:10]} 31. Rc1 {[%emt 0:00:46]} Nd3 {[%emt 0:01:17]} 32. Rd1 {[%emt 0:00:41]} Nxb2 {[%emt 0:01:29]} 33. Rb1 {[%emt 0:00:06]} Re6 {[%emt 0:00:57]} 34. Nd5 {[%emt 0:00:51]} Re2 {[%emt 0:00:27]} 35. Nc3 {[%emt 0:00:29]} Rc2 {[%emt 0:00:25]} 36. Bxb7 {[%emt 0:00:17]} Rxc3 {[%emt 0:00:42]} 37. Rxb2 {[%emt 0:00:03]} Rb8 {[%emt 0:00:14]} 38. Rb6 {[%emt 0:00:31]} Rc4 {[%emt 0:01:28]} 39. a5 {[%emt 0:00:26]} Rb4 {[%emt 0:00:40]} 40. Rxb4 {[%emt 0:00:15]} cxb4 {[%emt 0:00:09]} 41. Bxa6 {[%emt 0:00:02]} b3 {[%emt 0:00:31]} 42. Bd3 {[%emt 0:00:08]} b2 {[%emt 0:00:12]} 43. Bb1 {[%emt 0:00:04]} Rc8 {[%emt 0:00:06]} 0-1

[Event "ESP-chT 2nd Division 2019"]
[Site "Linares"]
[Date "2019.08.23"]
[Round "7.17"]
[White "Glavina, Pablo"]
[Black "Carrasco Martinez, Juan M."]
[Result "0-1"]
[ECO "A15"]
[WhiteElo "2407"]
[BlackElo "2374"]
[Annotator "ChessBase"]
[PlyCount "81"]
[EventDate "2019.08.19"]
[EventType "team-tourn"]
[EventCountry "ESP"]
[SourceTitle "playchess.com"]
[Source "ChessBase"]
[SourceQuality "1"]
[TimeControl "5400+30"]

1. c4 {[%emt 0:06:12]} Nf6 {[%emt 0:02:06]} 2. g3 {[%emt 0:00:14]} c6 {[%emt 0:01:29]} 3. Bg2 {[%emt 0:00:07]} d5 {[%emt 0:00:07]} 4. Nf3 {[%emt 0:00:08]} g6 {[%emt 0:02:44]} 5. b3 {[%emt 0:00:15]} Bg7 {[%emt 0:00:24]} 6. Bb2 {[%emt 0:00:06]} O-O {[%emt 0:00:07]} 7. O-O {[%emt 0:00:04]} a5 {[%emt 0:01:03]} 8. d3 {[%emt 0:04:42]} Na6 {[%emt 0:02:14]} 9. a3 {[%emt 0:01:17]} Bg4 {[%emt 0:03:34]} 10. Nbd2 {[%emt 0:01:23]} Bxf3 {[%emt 0:00:43]} 11. Nxf3 {[%emt 0:00:07]} e6 {[%emt 0:03:01]} 12. Qc2 {[%emt 0:00:20]} Nd7 {[%emt 0:02:21]} 13. Bxg7 {[%emt 0:00:16]} Kxg7 {[%emt 0:00:06]} 14. e4 {[%emt 0:00:32]} dxe4 {[%emt 0:06:22]} 15. dxe4 {[%emt 0:00:10]} Qf6 {[%emt 0:00:37]} 16. Rfe1 {[%emt 0:02:04]} Ne5 {[%emt 0:01:33]} 17. Nd4 {[%emt 0:04:57]} Rfd8 {[%emt 0:02:11]} 18. Rad1 {[%emt 0:00:07]} Nc5 {[%emt 0:07:17]} 19. Re2 {[%emt 0:11:56]} Rxd4 {[%emt 0:02:51]} 20. Rxd4 {[%emt 0:00:04]} Nf3+ {[%emt 0:00:05]} 21. Bxf3 {[%emt 0:00:04]} Qxd4 {[%emt 0:00:06]} 22. Re1 {[%emt 0:00:09]} Qf6 {[%emt 0:02:01]} 23. Bg4 {[%emt 0:03:21]} Rd8 {[%emt 0:01:36]} 24. Kg2 {[%emt 0:09:46]} h5 {[%emt 0:06:07]} 25. Be2 {[%emt 0:04:00]} e5 {[%emt 0:01:15]} 26. Rd1 {[%emt 0:00:14]} Rxd1 {[%emt 0:02:29]} 27. Bxd1 {[%emt 0:00:01]} Qd6 {[%emt 0:01:29]} 28. Bf3 {[%emt 0:01:29]} Qd4 {[%emt 0:01:43]} 29. h4 {[%emt 0:00:42]} Nd3 {[%emt 0:02:40]} 30. Kf1 {[%emt 0:00:19]} f5 {[%emt 0:02:50]} 31. exf5 {[%emt 0:01:02]} e4 {[%emt 0:00:09]} 32. Bd1 {[%emt 0:00:25]} Nxf2 {[%emt 0:06:33]} 33. f6+ {[%emt 0:01:47]} Kf7 {[%emt 0:00:50]} 34. Qxf2 {[%emt 0:00:43]} Qxd1+ {[%emt 0:00:06]} 35. Kg2 {[%emt 0:00:09]} Qxb3 {[%emt 0:00:42]} 36. Qd4 {[%emt 0:01:01]} Qf3+ {[%emt 0:00:48]} 37. Kh2 {[%emt 0:00:31]} Qf5 {[%emt 0:05:07]} 38. a4 {[%emt 0:01:50]} Qe6 {[%emt 0:01:05]} 39. Kg2 {[%emt 0:00:34]} e3 {[%emt 0:00:24]} 40. Kf3 {[%emt 0:01:01]} e2 {[%emt 0:00:27]} 41. Qd1 0-1

[Event "ESP-chT 2nd Division 2019"]
[Site "Linares"]
[Date "2019.08.23"]
[Round "7.18"]
[White "Figuero Toro, Julian Francisco"]
[Black "Quintin Navarro, Alberto"]
[Result "0-1"]
[ECO "C58"]
[WhiteElo "2268"]
[BlackElo "2376"]
[Annotator "ChessBase"]
[PlyCount "45"]
[EventDate "2019.08.19"]
[EventType "team-tourn"]
[EventCountry "ESP"]
[SourceTitle "playchess.com"]
[Source "ChessBase"]
[SourceQuality "1"]
[TimeControl "5400+30"]

1. e4 {[%emt 0:00:01]} e5 {[%emt 0:00:17]} 2. Nf3 {[%emt 0:00:06]} Nc6 {[%emt 0:00:04]} 3. Bc4 {[%emt 0:00:09]} Nf6 {[%emt 0:00:23]} 4. Ng5 {[%emt 0:00:28]} d5 {[%emt 0:00:17]} 5. exd5 {[%emt 0:00:05]} Na5 {[%emt 0:00:04]} 6. Bb5+ {[%emt 0:00:09]} c6 {[%emt 0:00:09]} 7. dxc6 {[%emt 0:00:05]} bxc6 {[%emt 0:00:04]} 8. Bd3 {[%emt 0:02:32]} Nd5 {[%emt 0:03:31]} 9. h4 {[%emt 0:01:15]} Nf4 {[%emt 0:12:26]} 10. Bf1 {[%emt 0:00:52]} h6 {[%emt 0:08:16]} 11. Nf3 {[%emt 0:00:48]} e4 {[%emt 0:01:56]} 12. d4 {[%emt 0:03:40]} Ne6 {[%emt 0:00:27]} 13. Ne5 {[%emt 0:04:41]} Qxd4 {[%emt 0:02:56]} 14. Qh5 {[%emt 0:16:58]} g6 {[%emt 0:02:59]} 15. Nxg6 {[%emt 0:00:07]} fxg6 {[%emt 0:00:27]} 16. Qxg6+ {[%emt 0:00:05]} Kd8 {[%emt 0:14:08]} 17. Nc3 {[%emt 0:01:59]} Bb4 {[%emt 0:04:11]} 18. Bd2 {[%emt 0:01:49]} Nf4 {[%emt 0:08:27]} 19. Qf7 {[%emt 0:11:47]} Rf8 {[%emt 0:01:29]} 20. Qxf8+ {[%emt 0:06:25]} Bxf8 {[%emt 0:00:08]} 21. Bxf4 {[%emt 0:00:08]} Bg4 {[%emt 0:03:57]} 22. f3 {[%emt 0:00:44]} exf3 {[%emt 0:00:27]} 23. Bc1 0-1

[Event "ESP-chT 2nd Division 2019"]
[Site "Linares"]
[Date "2019.08.23"]
[Round "7.19"]
[White "Chueca Lorente, Javier"]
[Black "Gonzalez Cano, Juan Jose"]
[Result "1/2-1/2"]
[ECO "A20"]
[WhiteElo "2144"]
[BlackElo "2019"]
[Annotator "ChessBase"]
[PlyCount "77"]
[EventDate "2019.08.19"]
[EventType "team-tourn"]
[EventCountry "ESP"]
[SourceTitle "playchess.com"]
[Source "ChessBase"]
[SourceQuality "1"]
[TimeControl "5400+30"]

1. c4 {[%emt 0:03:47]} e5 {[%emt 0:00:00]} 2. g3 {[%emt 0:00:55]} Nf6 {[%emt 0:00:00]} 3. Bg2 {[%emt 0:00:05]} d5 {[%emt 0:00:00]} 4. cxd5 {[%emt 0:00:03]} Nxd5 {[%emt 0:00:08]} 5. Nc3 {[%emt 0:00:06]} Nb6 {[%emt 0:00:06]} 6. Nf3 {[%emt 0:00:53]} Nc6 {[%emt 0:00:09]} 7. O-O {[%emt 0:00:18]} Be7 {[%emt 0:04:05]} 8. a3 {[%emt 0:04:17]} a5 {[%emt 0:00:11]} 9. b3 {[%emt 0:01:54]} O-O {[%emt 0:09:08]} 10. Bb2 {[%emt 0:00:46]} Be6 {[%emt 0:05:18]} 11. d3 {[%emt 0:02:43]} f6 {[%emt 0:01:01]} 12. Rc1 {[%emt 0:02:00]} Qd7 {[%emt 0:03:03]} 13. Nb5 {[%emt 0:11:01]} a4 {[%emt 0:26:50]} 14. Nd2 {[%emt 0:20:43]} Ra5 {[%emt 0:15:09]} 15. Nc3 {[%emt 0:01:49]} Nd4 {[%emt 0:05:16]} 16. b4 {[%emt 0:01:00]} Ra7 {[%emt 0:00:31]} 17. Nce4 {[%emt 0:02:56]} Nb3 {[%emt 0:05:40]} 18. Nc5 {[%emt 0:12:09]} Bxc5 {[%emt 0:07:57]} 19. bxc5 {[%emt 0:00:04]} Nxc1 {[%emt 0:00:07]} 20. cxb6 {[%emt 0:00:05]} Nxe2+ {[%emt 0:00:06]} 21. Qxe2 {[%emt 0:00:08]} cxb6 {[%emt 0:00:04]} 22. Qe3 {[%emt 0:04:28]} Ra5 {[%emt 0:03:07]} 23. Ne4 {[%emt 0:10:20]} Rc8 {[%emt 0:10:12]} 24. d4 {[%emt 0:04:12]} Rb5 {[%emt 0:01:01]} 25. Bc3 {[%emt 0:02:49]} exd4 {[%emt 0:01:07]} 26. Bxd4 {[%emt 0:01:19]} Rb3 {[%emt 0:00:11]} 27. Qd2 {[%emt 0:02:14]} Rxa3 {[%emt 0:00:46]} 28. Qb2 {[%emt 0:01:41]} Rb3 {[%emt 0:00:58]} 29. Qa1 {[%emt 0:00:01]} Kf7 {[%emt 0:01:06]} 30. Bxf6 {[%emt 0:02:11]} gxf6 {[%emt 0:00:32]} 31. Qxf6+ {[%emt 0:00:01]} Kg8 {[%emt 0:00:46]} 32. Ng5 {[%emt 0:00:29]} Bc4 {[%emt 0:00:43]} 33. Bh3 {[%emt 0:00:55]} Qg7 {[%emt 0:00:37]} 34. Be6+ {[%emt 0:00:53]} Kh8 {[%emt 0:00:32]} 35. Nf7+ {[%emt 0:01:39]} Kg8 {[%emt 0:00:00]} 36. Nh6+ {[%emt 0:00:28]} Kh8 {[%emt 0:00:08]} 37. Nf7+ {[%emt 0:00:26]} Kg8 {[%emt 0:00:01]} 38. Nd6+ Kh8 39. Qxg7+ 1/2-1/2

[Event "ESP-chT 2nd Division 2019"]
[Site "Linares"]
[Date "2019.08.23"]
[Round "7.20"]
[White "Guillo Longares, Cecilia"]
[Black "Roque Sola, Gisela"]
[Result "1/2-1/2"]
[ECO "A19"]
[WhiteElo "1916"]
[BlackElo "2048"]
[Annotator "NA"]
[PlyCount "39"]
[EventDate "2019.08.19"]
[EventType "team-tourn"]
[EventCountry "ESP"]
[SourceTitle "playchess.com"]
[Source "ChessBase"]
[SourceQuality "1"]
[TimeControl "5400+30"]

1. c4 {[%emt 0:00:00]} Nf6 {[%emt 0:00:23]} 2. Nc3 {[%emt 0:00:00]} e6 {[%emt 0:00:06]} 3. e4 {[%emt 0:00:00]} c5 {[%emt 0:02:59]} 4. e5 {[%emt 0:00:50]} Ng8 {[%emt 0:00:48]} 5. d4 {[%emt 0:02:27]} cxd4 {[%emt 0:01:11]} 6. Qxd4 {[%emt 0:00:09]} Nc6 {[%emt 0:01:02]} 7. Qe4 {[%emt 0:00:39]} d6 {[%emt 0:02:36]} 8. f4 {[%emt 0:02:21]} dxe5 {[%emt 0:07:21]} 9. fxe5 {[%emt 0:00:14]} Qa5 {[%emt 0:01:12]} 10. Nf3 {[%emt 0:00:48]} Bb4 {[%emt 0:00:25]} 11. Bd2 {[%emt 0:00:45]} Nge7 {[%emt 0:00:25]} 12. a3 {[%emt 0:06:53]} Nf5 {[%emt 0:06:51]} 13. g4 {[%emt 0:04:27]} Nfe7 {[%emt 0:01:03]} 14. O-O-O {[%emt 0:00:15]} Bxa3 {[%emt 0:06:22]} 15. bxa3 {[%emt 0:00:35]} Qxa3+ {[%emt 0:00:08]} 16. Kb1 {[%emt 0:00:06]} Qb3+ {[%emt 0:00:31]} 17. Kc1 {[%emt 0:04:17]} Qa3+ {[%emt 0:00:17]} 18. Kb1 {[%emt 0:00:05]} Qb3+ {[%emt 0:00:10]} 19. Kc1 {[%emt 0:00:13]} Qa3+ {[%emt 0:00:07]} 20. Kb1 {[%emt 0:00:17]} 1/2-1/2